Workbook

Sheet Guidance notes
E2: Enfield Council's Sustainable Drainage Proforma for Minor Developments
E4: Introduction
E5: This Sustainable Drainage (SuDS) Proforma is intended for all minor developments that are below 250m² in size, including all Householder developments
E6: It will be a requirement to fill in this form to validate your full application
E7: For developments over this size, please use the London Sustainable Drainage Proforma on our website
E9: This form guides you through the information we require on the proposed SuDS measures based on the type of development
E11: You will need to submit this completed form alongside any relevant documentation such as:
D12: 1. | E12: Drainage (and other) Drawings showing the location of the proposed SuDS features
D13: 2. | E13: Specifications and cross sections of the proposed SuDS features
D14: 3. | E14: Management Plan for future maintenance of the proposed SuDS features
D16: 1 | E16: Ensure your development is safe from Flooding
E17: As part of the feasibility of the development it is important to check if the site is subject to flood risk. This is to ensure the development is safe from flooding and does not increase flood risk elsewhere.
E18: Developments that are subject to surface water or fluvial flood risk, those that impede overland flow routes or those that may cause localised groundwater flooding will be objected to
E19: The EA's website | F19: is able to help you determine if your development is subject to surface water or fluvial (from rivers) flooding. In these maps:
D20: ­ | E20: Flood Zone 3 and 2 are highlighted as "High" and "Medium" risk respectively and correspond to the 1 in 100 and 1 in 1000 year flood event
D21: ­ | E21: Areas highlighted as "Medium" surface water flood risk corresponds to the 1 in 100 year flood event
E22: For basement levels, it must be demonstrated that the basement does not impede groundwater flows as this can lead to localised flooding. A Groundwater Flood Risk Assessment is needed to determine this. Basement developments will not be allowed in areas subject to surface water or fluvial flood risk
E24: Site Specific Flood Risk Assessments (FRAs)
E25: These are required when the site is subject to any type of flood risk (if your answer has been highlighted orange for questions 7 or 8 of the form). You will need:
D26: ● | E26: Information on the flood depth (1 in 100 year + 35% climate change) for fluvial and surface water flood risk
D27: ● | E27: To demonstrate that the finished floor levels of the development are 300mm above the fluvial flood depth and 100mm above the surface water flood depth
D28: ● | E28: A flood evacuation plan with the evacuation route being in the "low" hazard level according to the FD2320 | M28: R&D Technical Report FD2320
D29: ● | E29: To demonstrate the development involves no net loss of flood storage on site
D30: ● | E30: To demonstrate the development does not impede overland flow routes
E32: Groundwater Flood Risk Assessments (GW FRAs)
E33: These are required for any development involving a basement level. You will require:
D34: ● | E34: Onsite geological investigation recording the depth groundwater is encountered and the geology of the site
D35: ● | E35: Information on the depth of the finished basement level (relative to the depth groundwater has been encountered)
D36: ● | E36: Further information demonstrating the basement does not impede groundwater flows (if necessary)
D37: ● | E37: Information on any mitigation measures to prevent groundwater ingress into the basement
E39: Proximity to a watercourse
E40: Developments require permission from the relevant managing body if they are building within 8m of a watercourse
E41: Check to see if your development is in close proximity to a watercourse on our website
E42: If the development is in close proximity to a watercourse you will need to consult the | L42: Watercourses Team
D44: 2 | E44: Ensure your development doesn't increase Flood Risk elsewhere by using SuDS
E45: All areas of hardstanding can contribute to flooding downstream of a development. In Enfield, stormwater goes down drains and flows into the nearest river. During rainfall events, our local rivers can become overwhelmed and cause flooding.
E46: Any loss of green space or increase in areas of hardstanding can make the problem worse. Therefore, according to the Council's policies, all developments must incoporate SuDS measures to reduce runoff offsite
E47: This includes retrofitting SuDS into existing developments to manage existing flood risk
E48: SuDS can provide multiple benefits as well as stormwater management, such as filtering pollutants, improving biodiversity, and increasing climate change resilience. They can provide great spaces for amenity too.
E49: Crossovers, extensions and new basements should include at least one "source control" SuDS measure in the development
E50: These types of SuDS measures include Rain Gardens, Green Roofs and Permeable Paving and should be designed to attenuate runoff for a 1 in 2 year storm event
E51: New developments such as new houses must try to achieve greenfield runoff rates (1 in 100 year storm event) by using "source control" and "attenuation" SuDS measures
E52: Rain Gardens and Permeable Paving can provide both source control and attenuation
E54: Geology
E55: When choosing a site's appropriate SuDS measures, it is important to note the site's geology.
E56: Sites that are underlain by gravel geology should consider full infiltration either using rain gardens or permeable paving
E57: You should still use rain gardens and permeable paving in areas of clay geology, as these features do not rely on infiltration to function
E58: It is encouraged to have an overflow in case full infiltration is not possible
E59: If you are proposing to use full infiltration without an overflow or propose to use a soakaway, you will need to conduct an onsite
E60: geological investigation in line with | H60: BRE365 | I60: to determine the geology, infiltration rate of the soils, and depth to the water table
E62: Here is some information on types of SuDS measures that are appropriate for small scale developments. These SuDS can easily be integrated into the landscape and provide the most benefits:
E64: Rain Gardens
E65: These are sunken planted features made up of gravel sub-base, topsoil and planting, and the space between the planting layer and ground level (which is called freeboard)
E66: Hardstanding areas can slope towards a rain garden, or rainwater pipes can discharge directly onto these features
E67: You can size a rain garden to provide source control (1 in 2 year) and attenuation (up to 1 in 100 year plus climate change). The ratio of hardstanding draining to a rain garden should not exceed 10:1
E69: Permeable Paving
E70: There are a variety of materials that are permeable, such as resin bound or block paving
E71: Permeable paving can provide attenuation in its sub-base for up to the 1 in 100 year plus climate change event. Rainwater pipes can also discharge onto these areas to prevent the sub-base blocking up with silts
E72: The ratio of hardstanding draining onto permeable paving should not exceed 3:1 unless the geology below the paving has a high infiltration rate
E74: Rain Planters
E75: These are like raised rain gardens in a box planter that can only manage runoff generated from roofs. They do not provide attenuation exceeding a 1 in 2 year storm event
E76: Rainwater pipes discharge onto the planter and filters down to the gravel layer where there is an overflow connection back to the existing surface sewer
E77: The ratio of roof runoff draining to a planter should not exceed 50:1 (a planter draining 50m² of roof should be at least 1m² in size)
E79: Green Roofs
E80: There are a wide variety of green, blue and brown roofs that are often easily maintainable and can be used on a variety of different roofs. They are mainly used on flat roofs
E81: They can provide multiple benefits as well as stormwater management which include providing insulation for the building and reducing the urban heat island effect
E82: Intensive green roofs provide the most stormwater, water quality, biodiversity and amenity benefit, although they require more loading capacity on the roof
E84: There are other SuDS features that can be used such as geocellular tanks to provide attenuation, but these are difficult to maintain for small scale developments and must be used in conjunction with Source Control SuDS measures if proposed
E86: Useful Links
E87: o Enfield's SuDS webpage, which contains a Design Guide
E88: o CIRIA C753 The SuDS Manual
E89: o UDL Designing a Rain Gardens: A Practical Guide
E90: o The London Plan Sustainable Design and Construction SPG
E91: o DEFRA non-statutory technical standards for sustainable drainage
E92: o Environment Agency climate change guidance
E94: Policy Documents
D95: 1. | E95: London Borough of Enfield Development Management Document policy 61
D96: 2. | E96: London Plan policy 5.13 | G96: New London Plan policy SI13 | J96: and new draft Local Plan policy SUS5.
D97: 3. | E97: The National Planning Policy Framework (NPPF)

Sheet Applicant Details
J1: Key
B2: 1. Project and Site Details | K2: Application invalid
A3: 1 | B3: Project/Site Name | K3: A Site Specific Flood Risk Assessment is needed
A4: 2 | B4: Site Address
A5: 3 | B5: LPA Reference
A6: 4 | B6: Type of Development
A7: 5 | B7: Total Site Area (m²)
A8: 6 | B8: Total Proposed Impermable Area (m²)
A9: 7 | B9: Is the site subject to flooding from rivers?
A10: 8 | B10: Is the site subject to surface water flood risk?
A11: 9 | B11: Is the site within 8m of a watercourse or culvert?
A12: 10 | B12: Site infiltration potential
B13: 2. Additional Information | P13: Ground Floor Extension
A14: 11 | B14: Have you submitted drawings of SuDS proposals? | P14: Upper Floor/Vertical Extension
A15: 12 | B15: Have you submitted a management plan for SuDS features? | P15: New Build
A16: ` | B16: 3. Design Details | P16: New Build with basement
A17: 13 | B17: No. of SuDS Features | C17: 0 | D17: Target Attenuation (m3) | E17: Minimum Attenution Needed (m3) | F17: Please provide reasoning if target attenuation is not provided | P17: Basement
A18: 14 | B18: Total attenuation provided (m3) | C18: =SUM(E$20:E$23) -> 0 | D18: =One_in_hundred -> 0 | E18: =One_in_two -> 0 | P18: Vehicle Crossover or New Hardstanding
B19: Type of Feature | C19: Area of SuDS feature (m2) | D19: Area Drained to SuDS feature (m2) | E19: Attenuation Volume of SuDS feature (m3) | P19: Change of use
A20: A | P20: Other
A21: B
A22: C
A23: D
A28: =IF(Development="Other","5"," ") ->  | B28: =IF(Development="Other","Please provide development Information"," ") ->  | P28: High Risk
P29: Medium Risk
P30: Low Risk
P31: Very Low Risk
P32: Full Infiltration
P33: Partial Infiltration
P34: Yes
P35: No
P45: Rain Garden
P46: Green Roof
P47: Permeable Paving
P48: Rain Planter
P49: Soakaway
P50: Geocellular Tank
P51: Rainwater Harvesting System
P52: Water Butt
P53: Other

Sheet Planners Checklist (hidden)
I1: Consult the Watercourses Team
A3: 1 | B3: Does the Watercourses Team need to be consulted?
B5: Type of development | C5: =Development -> 0
B6: Proposed Impermeable Area | C6: =Total_Proposed_Impermable_Area -> 0
B7: Is the site in Flood Zone 2 or 3? | C7: =Fluvial -> 0
B8: Surface Water | C8: =Surface -> 0
B9: Basement | C9: =IF(Development="Basement","Yes",IF(Development="New Build with basement","Yes","No")) -> No
B10: Within 8m of a watercourse | C10: =Watercourse -> 0
A12: 2 | B12: Is the attenuation provided adequate?
B14: Attenuation provided (m3) | C14: =IF(Number_of_SuDS_Features=0,"0",Total_attenuation_provided__m3) -> 0 | N14: Yes
B15: 1 in 1 (m3) | C15: =One_in_one -> 0
B16: 1 in 2 (m3) | C16: =One_in_two -> 0
B17: 1 in 30 (m3) | C17: =One_in_thirty -> 0 | N17: No
B18: 1 in 100 (m3) | C18: =One_in_hundred -> 0 | N18: N/A
B20: Decision | C20: =IF(C14<=C16,"Object, storage requirment not met",IF(C14<=C18,"Check justification for not providing maximum storage","Adequate storage provided")) -> Adequate storage provided
A22: 3 | B22: SuDS Checklist
B24: Number of SuDS Features | C24: =No._of_SuDS_Features -> 0
B25: SuDS features used | C25: =IF(Number_of_SuDS_Features="0","-",'Applicant Details '!B20&" "&'Applicant Details '!B21&" "&'Applicant Details '!B22&" "&'Applicant Details '!B22&"") -> 
B26: Drawing | C26: Yes
B27: Management plan for SuDS | C27: No
B28: Have you checked the fluvial flood risk on site?
B29: Have you checked the surface water flood risk om site?
B30: Have you checked whether the development is close to a watercourse (within 8m)?

Sheet Locked (hidden)
B1: SuDS Hydrological Modelling Tool
B2: Estimates greenfield runoff rates and storage volumes for post development sites
B3: Standard LBE storage policy for a 1 in 1, 1 in 30 and 1 in 100 year return periods
R4: Highland Rainfall | S4: Data from FEH - Trent Park
B5: User Guide
R6: 1 in 1
A7: 1 | B7: Site Details
R8: Avg Outflow | S8: =((Q_1)/2/1000/10000) -> 6.758185721e-08 | T8: m3/s/m2
C9: Site Area | D9: 0.1 | E9: ha | F9: Site area (includes permeable area - which still contributes runoff to areas that are drained)
C10: Drained Area | D10: ='Applicant Details '!C8 -> 0 | E10: m2 | F10: Cannot exceed site area, usually impermeable but not always | R10: Rainfall Duration (min) | S10: Rainfall Depth (mm) | T10: Rainfall Depth +CC (mm) | U10: Intensity (mm/hr) | V10: Inflow volume (m3/m2) | W10: Rainfall Duration (Secs) | X10: Outflow vol (m3/m2) | Y10: Volume (m3/m2) | AA10: Volume (m3/m2) | AB10: Rainfall Duration (min) | AF10: Rainfall Duration (min) | AG10: Rainfall Depth (mm) | AH10: Rainfall Depth +CC (mm) | AI10: Intensity (mm/hr) | AJ10: Inflow volume (m3/m2) | AK10: Rainfall Duration (Secs) | AL10: Outflow vol (m3/m2) | AM10: Volume (m3/m2) | AO10: Volume (m3/m2) | AP10: Rainfall Duration (min)
C11: Location | D11: 3 | F11: Please select location on hydrological Map | R11: 15 | S11: 7.49 | T11: =S11*1.4 -> 10.486 | U11: =(S11/R11)*60 -> 29.96 | V11: =(T11*10^-3) -> 0.010486 | W11: =R11*60 -> 900 | X11: =$S$8*W11 -> 6.082367149e-05 | Y11: =MAX(0,$V$11-$X$11) -> 0.01042517633 | AA11: =MAX(0,$V$11-$X$11) -> 0.01042517633 | AB11: 15 | AF11: 15 | AG11: 8.37 | AH11: =AG11*1.4 -> 11.718 | AI11: =(AG11/AF11)*60 -> 33.48 | AJ11: =(AH11*10^-3) -> 0.011718 | AK11: =AF11*60 -> 900 | AL11: =$S$8*AK11 -> 6.082367149e-05 | AM11: =MAX(0,$V$11-$X$11) -> 0.01042517633 | AO11: =MAX(0,$V$11-$X$11) -> 0.01042517633 | AP11: 15
C12: SAAR | D12: =VLOOKUP(D11,B58:C63,2,FALSE) -> 623 | E12: mm | R12: 30 | S12: 9.38 | T12: =S12*1.4 -> 13.132 | U12: 18.76 | V12: =(T12*10^-3) -> 0.013132 | W12: 1800 | X12: 0.000121647343 | Y12: =MAX(0,$V$12-$X$12) -> 0.01301035266 | AA12: =MAX(0,$V$12-$X$12) -> 0.01301035266 | AB12: 30 | AF12: 30 | AG12: 10.7 | AH12: =AG12*1.4 -> 14.98 | AI12: 21.4 | AJ12: =(AH12*10^-3) -> 0.01498 | AK12: 1800 | AL12: 0.000121647343 | AM12: =MAX(0,$V$12-$X$12) -> 0.01301035266 | AO12: =MAX(0,$V$12-$X$12) -> 0.01301035266 | AP12: 30
C13: SPR | D13: =VLOOKUP($D$11,D58:E62,2,TRUE) -> 0.3 | R13: 60 | S13: 11.7 | T13: 16.38 | U13: 11.7 | V13: 0.01638 | W13: 3600 | X13: 0.0002432946859 | Y13: =MAX(0,$V$13-$X$13) -> 0.01613670531 | AA13: =MAX(0,$V$13-$X$13) -> 0.01613670531 | AB13: 60 | AF13: 60 | AG13: 13.09 | AH13: 18.326 | AI13: 13.09 | AJ13: 0.018326 | AK13: 3600 | AL13: 0.0002432946859 | AM13: =MAX(0,$V$13-$X$13) -> 0.01613670531 | AO13: =MAX(0,$V$13-$X$13) -> 0.01613670531 | AP13: 60
C14: Climate Change Factor | D14: 0.4 | F14: 40% increase on design rainfall now accepted as industry standard | R14: 120 | S14: 14.57 | T14: 20.398 | U14: 7.285 | V14: 0.020398 | W14: 7200 | X14: 0.0004865893719 | Y14: =MAX(0,$V$14-$X$14) -> 0.01991141063 | AA14: =MAX(0,$V$14-$X$14) -> 0.01991141063 | AB14: 120 | AC14: ` | AF14: 120 | AG14: 19.16 | AH14: 26.824 | AI14: 9.58 | AJ14: 0.026824 | AK14: 7200 | AL14: 0.0004865893719 | AM14: =MAX(0,$V$14-$X$14) -> 0.01991141063 | AO14: =MAX(0,$V$14-$X$14) -> 0.01991141063 | AP14: 120
C15: Urban Creep Factor | D15: 1.1 | F15: Taken from Scottish Sewer for Adoption | R15: 240 | S15: 18.1 | T15: 25.34 | U15: 4.525 | V15: 0.02534 | W15: 14400 | X15: 0.0009731787438 | Y15: =MAX(0,$V$15-$X$15) -> 0.02436682126 | AA15: =MAX(0,$V$15-$X$15) -> 0.02436682126 | AB15: 240 | AF15: 240 | AG15: 25.43 | AH15: 35.602 | AI15: 6.3575 | AJ15: 0.035602 | AK15: 14400 | AL15: 0.0009731787438 | AM15: =MAX(0,$V$15-$X$15) -> 0.02436682126 | AO15: =MAX(0,$V$15-$X$15) -> 0.02436682126 | AP15: 240
H16: Enfield Hydrological Map | R16: 360 | S16: 20.53 | T16: 28.742 | U16: 3.421666667 | V16: 0.028742 | W16: 21600 | X16: 0.001459768116 | Y16: =MAX(0,$V$16-$X$16) -> 0.02728223188 | AA16: =MAX(0,$V$16-$X$16) -> 0.02728223188 | AB16: 360 | AF16: 360 | AG16: 28.83 | AH16: 40.362 | AI16: 4.805 | AJ16: 0.040362 | AK16: 21600 | AL16: 0.001459768116 | AM16: =MAX(0,$V$16-$X$16) -> 0.02728223188 | AO16: =MAX(0,$V$16-$X$16) -> 0.02728223188 | AP16: 360
A17: 2 | B17: Calculating Greenfield Runoff Rate | R17: 720 | S17: 25.46 | T17: 35.644 | U17: 2.121666667 | V17: 0.035644 | W17: 43200 | X17: 0.002919536231 | Y17: =MAX(0,$V$17-$X$17) -> 0.03272446377 | AA17: =MAX(0,$V$17-$X$17) -> 0.03272446377 | AB17: 720 | AF17: 720 | AG17: 34.04 | AH17: 47.656 | AI17: 2.836666667 | AJ17: 0.047656 | AK17: 43200 | AL17: 0.002919536231 | AM17: =MAX(0,$V$17-$X$17) -> 0.03272446377 | AO17: =MAX(0,$V$17-$X$17) -> 0.03272446377 | AP17: 720
R18: =24*60 -> 1440 | S18: 30.97 | T18: 43.358 | U18: 1.290416667 | V18: 0.043358 | W18: 86400 | X18: 0.005839072463 | Y18: =MAX(0,$V$18-$X$18) -> 0.03751892754 | AA18: =MAX(0,$V$18-$X$18) -> 0.03751892754 | AB18: =24*60 -> 1440 | AF18: =24*60 -> 1440 | AG18: 39.03 | AH18: 54.642 | AI18: 1.62625 | AJ18: 0.054642 | AK18: 86400 | AL18: 0.005839072463 | AM18: =MAX(0,$V$18-$X$18) -> 0.03751892754 | AO18: =MAX(0,$V$18-$X$18) -> 0.03751892754 | AP18: =24*60 -> 1440
B19: Qbar(rural)=1.08Area0.89SAAR1.17SPR2.17 | D19: =1.08*0.5^0.89*SAAR^1.17*SPR^2.17 -> 79.5080673 | E19: l/s/50ha for calc) | F19: IH124 method | R19: =48*60 -> 2880 | S19: 37.66 | T19: 52.724 | U19: 0.7845833333 | V19: 0.052724 | W19: 172800 | X19: 0.01167814493 | Y19: =MAX(0,$V$19-$X$19) -> 0.04104585507 | AA19: =MAX(0,$V$19-$X$19) -> 0.04104585507 | AB19: =48*60 -> 2880 | AF19: =48*60 -> 2880 | AG19: 45.16 | AH19: 63.224 | AI19: 0.9408333333 | AJ19: 0.063224 | AK19: 172800 | AL19: 0.01167814493 | AM19: =MAX(0,$V$19-$X$19) -> 0.04104585507 | AO19: =MAX(0,$V$19-$X$19) -> 0.04104585507 | AP19: =48*60 -> 2880
C20: Qbar | D20: =Q50ha/50 -> 1.590161346 | E20: l/s/ha
B22: Growth Curves | R22: 1 in 30
B24: Q1 | C24: Qbar x 0.85 = | D24: =Qbar*0.85 -> 1.351637144 | E24: l/s/ha | R24: Avg Outflow | S24: =((Q_30)/2/1000/10000) -> 1.828685548e-07 | T24: m3/s/m2
B25: Q2 | C25: Qbar x 0.95 = | D25: =Qbar*0.95 -> 1.510653279 | E25: l/s/ha
B26: Q30 | C26: Qbar x 2.3 = | D26: =Qbar*2.3 -> 3.657371096 | E26: l/s/ha | R26: Rainfall Duration (min) | S26: Rainfall Depth (mm) | T26: Rainfall Depth +CC (mm) | U26: Intensity (mm/hr) | V26: Inflow volume (m3/m2) | W26: Rainfall Duration (Secs) | X26: Outflow vol (m3/m2) | Y26: Volume (m3/m2) | AA26: Volume (m3/m2) | AB26: Rainfall Duration (min)
B27: Q100 | C27: Qbar x 3.2 = | D27: =Qbar*3.2 -> 5.088516307 | E27: l/s/ha | R27: 15 | S27: 25.66 | T27: =S27*1.4 -> 35.924 | U27: =(S27/R27)*60 -> 102.64 | V27: =(T27*10^-3) -> 0.035924 | W27: 900 | X27: =$S$24*W27 -> 0.0001645816993 | Y27: =MAX(0,$V$27-$X$27) -> 0.0357594183 | AA27: =MAX(0,$V$27-$X$27) -> 0.0357594183 | AB27: 15
A28: 3 | B28: Full Site Discharge Rates | R28: 30 | S28: 30.3 | T28: =S28*1.4 -> 42.42 | U28: 60.6 | V28: =(T28*10^-3) -> 0.04242 | W28: 1800 | X28: =$S$24*W28 -> 0.0003291633986 | Y28: =MAX(0,$V$28-$X$28) -> 0.0420908366 | AA28: =MAX(0,$V$28-$X$28) -> 0.0420908366 | AB28: 30
R29: 60 | S29: 35.65 | T29: 49.91 | U29: 35.65 | V29: 0.04991 | W29: 3600 | X29: 0.0006583267973 | Y29: =MAX(0,$V$29-$X$29) -> 0.0492516732 | AA29: =MAX(0,$V$29-$X$29) -> 0.0492516732 | AB29: 60
B30: Q1 | C30: Qbar x 0.85 x Site Area = | D30: =Q_1*Area__ha -> 0.1351637144 | E30: l/s | R30: 120 | S30: 41.84 | T30: 58.576 | U30: 20.92 | V30: 0.058576 | W30: 7200 | X30: 0.001316653595 | Y30: =MAX(0,$V$30-$X$30) -> 0.05725934641 | AA30: =MAX(0,$V$30-$X$30) -> 0.05725934641 | AB30: 120
B31: Q2 | C31: Qbar x 0.95 x Site Area = | D31: =Q__2*Area__ha -> 0.1510653279 | E31: l/s | R31: 240 | S31: 49.02 | T31: 68.628 | U31: 12.255 | V31: 0.068628 | W31: 14400 | X31: 0.002633307189 | Y31: =MAX(0,$V$31-$X$31) -> 0.06599469281 | AA31: =MAX(0,$V$31-$X$31) -> 0.06599469281 | AB31: 240
B32: Q30 | C32: Qbar x 2.3 x Site Area = | D32: =Q_30*Area__ha -> 0.3657371096 | E32: l/s | R32: 360 | S32: 53.74 | T32: 75.236 | U32: 8.956666667 | V32: 0.075236 | W32: 21600 | X32: 0.003949960784 | Y32: =MAX(0,$V$32-$X$32) -> 0.07128603922 | AA32: =MAX(0,$V$32-$X$32) -> 0.07128603922 | AB32: 360
B33: Q100 | C33: Qbar x 3.2 x Site Area = | D33: =Q_100*Area__ha -> 0.5088516307 | E33: l/s | R33: 720 | S33: 62.82 | T33: 87.948 | U33: 5.235 | V33: 0.087948 | W33: 43200 | X33: 0.007899921567 | Y33: =MAX(0,$V$33-$X$33) -> 0.08004807843 | AA33: =MAX(0,$V$33-$X$33) -> 0.08004807843 | AB33: 720
A34: 4 | B34: Attenuation Estimation | R34: =24*60 -> 1440 | S34: 72.07 | T34: 100.898 | U34: 3.002916667 | V34: 0.100898 | W34: 86400 | X34: 0.01579984313 | Y34: =MAX(0,$V$34-$X$34) -> 0.08509815687 | AA34: =MAX(0,$V$34-$X$34) -> 0.08509815687 | AB34: =24*60 -> 1440
R35: =48*60 -> 2880 | S35: 82.62 | T35: 115.668 | U35: 1.72125 | V35: 0.115668 | W35: 172800 | X35: 0.03159968627 | Y35: =MAX(0,$V$35-$X$35) -> 0.08406831373 | AA35: =MAX(0,$V$35-$X$35) -> 0.08406831373 | AB35: =48*60 -> 2880
C36: Critical Duration (mins) | D36: Storage Volumes (m3)
B37: 1:1 | C37: =IF(OR(D11=1,D11=2,D11=5),VLOOKUP(MAX(Y11:Y19),AA11:AB19,2,FALSE),VLOOKUP(MAX(Y61:Y69),AA61:AB69,2,FALSE)) -> 2880 | D37: =IF(OR(D11=1,D11=2,D11=5),MAX(Y11:Y19)*Impermeable_Area__m2*Urban_Creep_Factor,MAX(Y61:Y69)*Impermeable_Area__m2*Urban_Creep_Factor) -> 0 | E37: m3 | R37: 1 in 100
B38: 1:2 | D38: =MAX(AM11:AM19)*Impermeable_Area__m2*Urban_Creep_Factor -> 0
B39: 1:30 | C39: =IF(OR(D11=1,D11=2,D11=5),VLOOKUP(MAX(Y27:Y35),AA27:AB35,2,FALSE),VLOOKUP(MAX(Y77:Y85),AA77:AB85,2,FALSE)) -> 1440 | D39: =IF(OR(D11=1,D11=2,D11=5),MAX(Y27:Y35)*Impermeable_Area__m2*Urban_Creep_Factor,MAX(Y77:Y85)*Impermeable_Area__m2*Urban_Creep_Factor) -> 0 | E39: m3 | G39: *Click on PDF to view | R39: Avg Outflow | S39: =((Q_100)/2/1000/10000) -> 2.544258154e-07 | T39: m3/s/m2
B40: 1:100 | C40: =IF(OR(D11=1,D11=2,D11=5),VLOOKUP(MAX(Y42:Y50),AA42:AB50,2,FALSE),VLOOKUP(MAX(Y92:Y100),AA92:AB100,2,FALSE)) -> 1440 | D40: =IF(OR(D11=1,D11=2,D11=5),MAX(Y42:Y50)*Impermeable_Area__m2*Urban_Creep_Factor,MAX(Y92:Y100)*Impermeable_Area__m2*Urban_Creep_Factor) -> 0 | E40: m3 | H40: Location | I40: SAAR | J40: SPR
H41: 1 | I41: 679 | J41: 0.47 | R41: Rainfall Duration (min) | S41: Rainfall Depth (mm) | T41: Rainfall Depth +CC (mm) | U41: Intensity (mm/hr) | V41: Inflow volume (m3/m2) | W41: Rainfall Duration (Secs) | X41: Outflow vol (m3/m2) | Y41: Volume (m3/m2) | AA41: Volume (m3/m2) | AB41: Rainfall Duration (min)
H42: 2 | I42: 679 | J42: 0.47 | R42: 15 | S42: 40.02 | T42: =S42*1.4 -> 56.028 | U42: =(S42/R42)*60 -> 160.08 | V42: =(T42*10^-3) -> 0.056028 | W42: 900 | X42: =$S$39*W42 -> 0.0002289832338 | Y42: =MAX(0,$V$42-$X$42) -> 0.05579901677 | AA42: =MAX(0,V42-X42) -> 0.05579901677 | AB42: 15
H43: 3 | I43: 623 | J43: 0.3 | R43: 30 | S43: 46.25 | T43: =S43*1.4 -> 64.75 | U43: 92.5 | V43: =(T43*10^-3) -> 0.06475 | W43: 1800 | X43: 0.0004579664677 | Y43: =MAX(0,$V$43-$X$43) -> 0.06429203353 | AA43: =MAX(0,V43-X43) -> 0.06429203353 | AB43: 30
H44: 4 | I44: 645 | J44: 0.47 | R44: 60 | S44: 53.28 | T44: 74.592 | U44: 53.28 | V44: 0.074592 | W44: 3600 | X44: 0.0009159329353 | Y44: =MAX(0,$V$44-$X$44) -> 0.07367606706 | AA44: 0.07367606706 | AB44: 60
H45: 5 | I45: 667 | J45: 0.47 | R45: 120 | S45: 61.22 | T45: 85.708 | U45: 30.61 | V45: 0.085708 | W45: 7200 | X45: 0.001831865871 | Y45: =MAX(0,V45-X45) -> 0.08387613413 | AA45: 0.08387613413 | AB45: 120
H46: 6 | I46: 629 | J46: 0.3 | R46: 240 | S46: 70.22 | T46: 98.308 | U46: 17.555 | V46: 0.098308 | W46: 14400 | X46: 0.003663731741 | Y46: 0.09464426826 | AA46: 0.09464426826 | AB46: 240
R47: 360 | S47: 76.03 | T47: 106.442 | U47: 12.67166667 | V47: 0.106442 | W47: 21600 | X47: 0.005495597612 | Y47: 0.1009464024 | AA47: 0.1009464024 | AB47: 360
R48: 720 | S48: 87.02 | T48: 121.828 | U48: 7.251666667 | V48: 0.121828 | W48: 43200 | X48: 0.01099119522 | Y48: 0.1108368048 | AA48: 0.1108368048 | AB48: 720
R49: =24*60 -> 1440 | S49: 97.74 | T49: 136.836 | U49: 4.0725 | V49: 0.136836 | W49: 86400 | X49: 0.02198239045 | Y49: 0.1148536096 | AA49: 0.1148536096 | AB49: =24*60 -> 1440
D50: Location | E50: SAAR | R50: =48*60 -> 2880 | S50: 109.7 | T50: 153.58 | U50: 2.285416667 | V50: 0.15358 | W50: 172800 | X50: 0.0439647809 | Y50: 0.1096152191 | AA50: 0.1096152191 | AB50: =48*60 -> 2880
D51: 1 | E51: 627
D52: 2 | E52: 576
D53: 3 | E53: 456 | R53: Lowland Rainfall
R54: Data from FEH - Haselbury
D55: 4 | E55: 689
R56: 1 in 1
B57: Location | C57: SAAR | D57: Location | E57: SPR
B58: 1 | C58: 679 | D58: 1 | E58: 0.47 | R58: Avg Outflow | S58: =((Q_1)/2/1000/10000) -> 6.758185721e-08 | T58: m3/s/m2
B59: 2 | C59: 679 | D59: 2 | E59: 0.47
B60: 3 | C60: 623 | D60: 3 | E60: 0.3 | R60: Rainfall Duration (min) | S60: Rainfall Depth (mm) | T60: Rainfall Depth +CC (mm) | U60: Intensity (mm/hr) | V60: Inflow volume (m3/m2) | W60: Rainfall Duration (Secs) | X60: Outflow vol (m3/m2) | Y60: Volume (m3/m2) | AA60: Volume (m3/m2) | AB60: Rainfall Duration (min)
B61: 4 | C61: 645 | D61: 4 | E61: 0.47 | R61: 15 | S61: 5.33 | T61: =S61*1.4 -> 7.462 | U61: =(S61/R61)*60 -> 21.32 | V61: =(T61*10^-3) -> 0.007462 | W61: =R61*60 -> 900 | X61: =$S$8*W61 -> 6.082367149e-05 | Y61: =MAX(0,V61-X61) -> 0.007401176329 | AA61: =MAX(0,V61-X61) -> 0.007401176329 | AB61: 15
B62: 5 | C62: 667 | D62: 5 | E62: 0.47 | R62: 30 | S62: 6.85 | T62: =S62*1.4 -> 9.59 | U62: 13.7 | V62: =(T62*10^-3) -> 0.00959 | W62: 1800 | X62: 0.000121647343 | Y62: =MAX(0,V62-X62) -> 0.009468352657 | AA62: =MAX(0,V62-X62) -> 0.009468352657 | AB62: 30
B63: 6 | C63: 629 | D63: 6 | E63: 0.3 | R63: 60 | S63: 8.48 | T63: 11.872 | U63: 8.48 | V63: 0.011872 | W63: 3600 | X63: 0.0002432946859 | Y63: 0.01162870531 | AA63: 0.01162870531 | AB63: 60
R64: 120 | S64: 13.77 | T64: 19.278 | U64: 6.885 | V64: 0.019278 | W64: 7200 | X64: 0.0004865893719 | Y64: 0.01879141063 | AA64: 0.01879141063 | AB64: 120
R65: 240 | S65: 19.34 | T65: 27.076 | U65: 4.835 | V65: 0.027076 | W65: 14400 | X65: 0.0009731787438 | Y65: 0.02610282126 | AA65: 0.02610282126 | AB65: 240
R66: 360 | S66: 22.34 | T66: 31.276 | U66: 3.723333333 | V66: 0.031276 | W66: 21600 | X66: 0.001459768116 | Y66: 0.02981623188 | AA66: 0.02981623188 | AB66: 360
R67: 720 | S67: 26.99 | T67: 37.786 | U67: 2.249166667 | V67: 0.037786 | W67: 43200 | X67: 0.002919536231 | Y67: 0.03486646377 | AA67: 0.03486646377 | AB67: 720
R68: =24*60 -> 1440 | S68: 31.25 | T68: 43.75 | U68: 1.302083333 | V68: 0.04375 | W68: 86400 | X68: 0.005839072463 | Y68: 0.03791092754 | AA68: 0.03791092754 | AB68: =24*60 -> 1440
R69: =48*60 -> 2880 | S69: 36.5 | T69: 51.1 | U69: 0.7604166667 | V69: 0.0511 | W69: 172800 | X69: 0.01167814493 | Y69: 0.03942185507 | AA69: 0.03942185507 | AB69: =48*60 -> 2880
R72: 1 in 30
R74: Avg Outflow | S74: =((Q_30)/2/1000/10000) -> 1.828685548e-07 | T74: m3/s/m2
R76: Rainfall Duration (min) | S76: Rainfall Depth (mm) | T76: Rainfall Depth +CC (mm) | U76: Intensity (mm/hr) | V76: Inflow volume (m3/m2) | W76: Rainfall Duration (Secs) | X76: Outflow vol (m3/m2) | Y76: Volume (m3/m2) | AA76: Volume (m3/m2) | AB76: Rainfall Duration (min)
R77: 15 | S77: 20.5 | T77: =S77*1.4 -> 28.7 | U77: =(S77/R77)*60 -> 82 | V77: =(T77*10^-3) -> 0.0287 | W77: 900 | X77: =$S$24*W77 -> 0.0001645816993 | Y77: =MAX(0,V77-X77) -> 0.0285354183 | AA77: =MAX(0,V77-X77) -> 0.0285354183 | AB77: 15
R78: 30 | S78: 26.75 | T78: =S78*1.4 -> 37.45 | U78: 53.5 | V78: =(T78*10^-3) -> 0.03745 | W78: 1800 | X78: =$S$24*W78 -> 0.0003291633986 | Y78: =MAX(0,V78-X78) -> 0.0371208366 | AA78: =MAX(0,V78-X78) -> 0.0371208366 | AB78: 30
R79: 60 | S79: 33 | T79: 46.2 | U79: 33 | V79: 0.0462 | W79: 3600 | X79: 0.0006583267973 | Y79: 0.0455416732 | AA79: 0.0455416732 | AB79: 60
R80: 120 | S80: 43.05 | T80: 60.27 | U80: 21.525 | V80: 0.06027 | W80: 7200 | X80: 0.001316653595 | Y80: 0.05895334641 | AA80: 0.05895334641 | AB80: 120
R81: 240 | S81: 53.26 | T81: 74.564 | U81: 13.315 | V81: 0.074564 | W81: 14400 | X81: 0.002633307189 | Y81: 0.07193069281 | AA81: 0.07193069281 | AB81: 240
R82: 360 | S82: 58.62 | T82: 82.068 | U82: 9.77 | V82: 0.082068 | W82: 21600 | X82: 0.003949960784 | Y82: 0.07811803922 | AA82: 0.07811803922 | AB82: 360
R83: 720 | S83: 66.37 | T83: 92.918 | U83: 5.530833333 | V83: 0.092918 | W83: 43200 | X83: 0.007899921567 | Y83: 0.08501807843 | AA83: 0.08501807843 | AB83: 720
R84: =24*60 -> 1440 | S84: 72.85 | T84: 101.99 | U84: 3.035416667 | V84: 0.10199 | W84: 86400 | X84: 0.01579984313 | Y84: 0.08619015687 | AA84: 0.08619015687 | AB84: =24*60 -> 1440
R85: =48*60 -> 2880 | S85: 80.02 | T85: 112.028 | U85: 1.667083333 | V85: 0.112028 | W85: 172800 | X85: 0.03159968627 | Y85: 0.08042831373 | AA85: 0.08042831373 | AB85: =48*60 -> 2880
R87: 1 in 100
R89: Avg Outflow | S89: =((Q_100)/2/1000/10000) -> 2.544258154e-07 | T89: m3/s/m2
R91: Rainfall Duration (min) | S91: Rainfall Depth (mm) | T91: Rainfall Depth +CC (mm) | U91: Intensity (mm/hr) | V91: Inflow volume (m3/m2) | W91: Rainfall Duration (Secs) | X91: Outflow vol (m3/m2) | Y91: Volume (m3/m2) | AA91: Volume (m3/m2) | AB91: Rainfall Duration (min)
R92: 15 | S92: 27.08 | T92: =S92*1.4 -> 37.912 | U92: =(S92/R92)*60 -> 108.32 | V92: =(T92*10^-3) -> 0.037912 | W92: 900 | X92: =$S$39*W92 -> 0.0002289832338 | Y92: =MAX(0,V92-X92) -> 0.03768301677 | AA92: =MAX(0,V92-X92) -> 0.03768301677 | AB92: 15
R93: 30 | S93: 35.5 | T93: =S93*1.4 -> 49.7 | U93: 71 | V93: =(T93*10^-3) -> 0.0497 | W93: 1800 | X93: 0.0004579664677 | Y93: =MAX(0,V93-X93) -> 0.04924203353 | AA93: =MAX(0,V93-X93) -> 0.04924203353 | AB93: 30
R94: 60 | S94: 43.93 | T94: =S94*1.4 -> 61.502 | U94: 43.93 | V94: 0.061502 | W94: 3600 | X94: 0.0009159329353 | Y94: 0.06058606706 | AA94: 0.06058606706 | AB94: 60
R95: 120 | S95: 57.34 | T95: =S95*1.4 -> 80.276 | U95: 28.67 | V95: 0.080276 | W95: 7200 | X95: 0.001831865871 | Y95: 0.07844413413 | AA95: 0.07844413413 | AB95: 120
R96: 240 | S96: 71.73 | T96: 100.422 | U96: 17.9325 | V96: 0.100422 | W96: 14400 | X96: 0.003663731741 | Y96: 0.09675826826 | AA96: 0.09675826826 | AB96: 240
R97: 360 | S97: 79.64 | T97: 111.496 | U97: 13.27333333 | V97: 0.111496 | W97: 21600 | X97: 0.005495597612 | Y97: 0.1060004024 | AA97: 0.1060004024 | AB97: 360
R98: 720 | S98: 90.79 | T98: 127.106 | U98: 7.565833333 | V98: 0.127106 | W98: 43200 | X98: 0.01099119522 | Y98: 0.1161148048 | AA98: 0.1161148048 | AB98: 720
R99: =24*60 -> 1440 | S99: 98.79 | T99: 138.306 | U99: 4.11625 | V99: 0.138306 | W99: 86400 | X99: 0.02198239045 | Y99: 0.1163236096 | AA99: 0.1163236096 | AB99: =24*60 -> 1440
R100: =48*60 -> 2880 | S100: 105.46 | T100: 147.644 | U100: 2.197083333 | V100: 0.147644 | W100: 172800 | X100: 0.0439647809 | Y100: 0.1036792191 | AA100: 0.1036792191 | AB100: =48*60 -> 2880
